bitfinex-derivatives/quotes_BTCF0:USTF0_20260207
["timestamp","ask_amount","ask_price","bid_price","bid_amount"]
[1770427992641,0.014267,70147.0,70125.0,0.5449767]
[1770427992942,0.54816566,70160.0,70128.0,0.5449767]
[1770427993743,0.014266,70148.0,70128.0,0.5449767]
[1770427993956,0.42350852,70154.0,70128.0,0.5449767]
[1770427994158,0.54816566,70152.0,70128.0,0.25926376]
[1770427994547,0.42350852,70151.0,70128.0,0.25926376]
[1770427994958,0.97167418,70152.0,70128.0,0.25926376]
[1770427995449,0.42350852,70149.0,70128.0,0.25926376]
[1770427995850,0.014267,70146.0,70128.0,0.25926376]
[1770427996256,0.014267,70146.0,70128.0,0.10483944]
[1770427997858,0.54816566,70137.0,70114.0,0.5449767]
[1770427998154,0.014269,70133.0,70114.0,0.4020067]
[1770427998562,0.014269,70133.0,70114.0,0.2590367]
[1770427999245,0.42350852,70138.0,70114.0,0.2590367]
[1770427999456,0.42350852,70138.0,70121.0,0.5449767]
[1770427999855,0.014268,70139.0,70121.0,0.5449767]
[1770428001864,0.42350852,70142.0,70124.0,0.5592477]
[1770428002167,0.42350852,70149.0,70124.0,0.5592477]
[1770428002456,0.42350852,70149.0,70128.0,0.5449767]
[1770428002655,0.014267,70144.0,70128.0,0.5449767]
[1770428003352,0.014267,70145.0,70128.0,0.5449767]
[1770428003555,0.014267,70144.0,70128.0,0.5449767]
[1770428003858,0.014267,70144.0,70105.0,0.014275]
[1770428003859,0.014268,70139.0,70120.0,0.5449767]
[1770428004062,0.54816566,70154.0,70120.0,0.5449767]
[1770428004257,0.54816566,70154.0,70123.0,0.5449767]
[1770428004559,0.014267,70146.0,70123.0,0.5449767]
[1770428004758,0.42350852,70162.0,70129.0,0.5449767]
[1770428004759,0.014264,70158.0,70129.0,0.5449767]
[1770428005060,0.014265,70156.0,70135.0,0.5449767]
[1770428005854,0.014266,70152.0,70135.0,0.5449767]
[1770428006054,0.014266,70148.0,70125.0,0.5449767]
[1770428006257,0.014267,70146.0,70125.0,0.5449767]
[1770428006457,0.014266,70149.0,70125.0,0.5449767]
[1770428007160,0.014267,70147.0,70125.0,0.5449767]
[1770428010866,0.54816566,70150.0,70125.0,0.5449767]
[1770428011165,0.014268,70139.0,70125.0,0.5449767]
[1770428011464,0.014268,70139.0,70115.0,0.5449767]
[1770428011864,0.54816566,70144.0,70115.0,0.5449767]
[1770428012065,0.1425955,70150.0,70115.0,0.4020167]
[1770428012066,0.014268,70142.0,70115.0,0.4020167]
[1770428012367,0.014268,70140.0,70117.0,0.5449767]
[1770428012667,0.014269,70137.0,70117.0,0.5449767]
[1770428012868,0.54816566,70143.0,70117.0,0.5449767]
[1770428012869,0.014268,70140.0,70117.0,0.5449767]
[1770428014463,0.014268,70140.0,70117.0,0.5592487]
[1770428014669,0.014267,70143.0,70119.0,0.014272]
[1770428014971,0.014267,70143.0,70120.0,0.5449767]
[1770428016467,0.55475382,70144.0,70120.0,0.5449767]
[1770428016765,0.55475382,70138.0,70113.0,0.11351048]
[1770428016970,0.014271,70124.0,70111.0,0.41989257]
[1770428017169,0.014271,70124.0,70111.0,0.27691257]
[1770428017366,0.014271,70127.0,70111.0,0.27691257]
[1770428018469,0.01427,70130.0,70111.0,0.27691257]
[1770428019166,0.01427,70128.0,70111.0,0.27691257]
[1770428020373,0.014269,70133.0,70111.0,0.27691257]
[1770428020572,0.55475382,70137.0,70111.0,0.27691257]
[1770428020969,0.01427,70130.0,70111.0,0.27691257]
[1770428021371,0.014269,70133.0,70111.0,0.27691257]
[1770428021870,0.55475382,70137.0,70111.0,0.27691257]
[1770428022070,0.014271,70126.0,70111.0,0.27691257]
[1770428022278,0.01427,70129.0,70111.0,0.27691257]
[1770428022574,0.01427,70132.0,70111.0,0.27691257]
[1770428022774,0.01427,70130.0,70111.0,0.27691257]
[1770428023075,0.55475382,70151.0,70116.0,0.56287257]
[1770428023268,0.014267,70145.0,70124.0,0.56287257]
[1770428023467,0.014268,70138.0,70124.0,0.56287257]
[1770428026780,0.55475382,70151.0,70124.0,0.56287257]
[1770428027278,0.014268,70141.0,70124.0,0.56287257]
[1770428027473,0.55475382,70145.0,70112.0,0.56287257]
[1770428027692,0.55475382,70143.0,70112.0,0.56287257]
[1770428027879,0.55475382,70143.0,70112.0,0.41990257]
[1770428028180,0.014269,70136.0,70112.0,0.41990257]
[1770428028379,0.56902282,70136.0,70112.0,0.41990257]
[1770428029175,0.014268,70139.0,70114.0,0.56287257]
[1770428029683,0.014267,70142.0,70117.0,0.56287257]
[1770428030072,0.55475382,70136.0,70099.0,0.56287257]
[1770428030278,0.42350852,70150.0,70116.0,0.56287257]
[1770428030279,0.55475382,70145.0,70116.0,0.56287257]
[1770428030485,0.014266,70148.0,70122.0,0.56287257]
[1770428030681,0.42350852,70155.0,70124.0,0.56287257]
[1770428030876,0.55475382,70180.0,70145.0,0.14982716]
[1770428031076,0.26743775,70184.0,70153.0,0.014265]
[1770428031077,0.01426,70181.0,70153.0,0.014265]
[1770428031276,0.014261,70176.0,70154.0,0.14982716]
[1770428031474,0.01426,70180.0,70154.0,0.14982716]
[1770428032287,0.014259,70184.0,70156.0,0.11410152]
[1770428032783,0.001,70177.0,70156.0,0.11410152]
[1770428033184,0.001,70177.0,70137.0,0.18438277]
[1770428033185,0.001,70177.0,70161.0,0.11410152]
[1770428033386,0.001,70177.0,70162.0,0.014263]
[1770428033686,0.0002,70184.0,70163.0,0.11369196]
[1770428034185,0.014458,70189.0,70163.0,0.11369196]
[1770428034580,0.014458,70189.0,70145.0,0.21084472]
[1770428034581,0.0002,70189.0,70165.0,0.11369196]
[1770428035379,0.014258,70190.0,70165.0,0.11369196]
[1770428035985,0.0002,70193.0,70166.0,0.014263]
[1770428036183,0.0002,70193.0,70175.0,0.13763962]
[1770428036682,0.0002,70197.0,70175.0,0.13763962]
[1770428037484,0.55475382,70234.0,70191.0,0.12375101]
[1770428037676,0.014251,70223.0,70191.0,0.12375101]
[1770428037880,0.071236,70244.0,70191.0,0.12375101]
[1770428037881,0.014252,70220.0,70191.0,0.12375101]
[1770428038076,0.55475382,70235.0,70191.0,0.12375101]
[1770428038290,0.014252,70220.0,70191.0,0.12375101]
[1770428039584,0.014252,70217.0,70191.0,0.12375101]
[1770428040786,0.014254,70210.0,70191.0,0.12375101]
[1770428041289,0.56900782,70210.0,70183.0,0.1501493]
[1770428041586,0.55475382,70207.0,70168.0,0.014262]
[1770428041788,0.014256,70200.0,70169.0,0.12700151]
[1770428042085,0.55475382,70203.0,70171.0,0.12700151]
[1770428042487,0.014255,70202.0,70171.0,0.12700151]
[1770428042691,0.55475382,70200.0,70171.0,0.12700151]
[1770428043397,0.014257,70196.0,70171.0,0.12700151]
[1770428043982,0.55475382,70200.0,70171.0,0.12700151]
[1770428044188,0.014254,70209.0,70175.0,0.08145702]
[1770428044789,0.014254,70209.0,70177.0,0.08145702]
[1770428045387,0.014255,70206.0,70180.0,0.00397034]
[1770428045587,0.014255,70204.0,70180.0,0.00397034]
[1770428046488,0.014256,70200.0,70171.0,0.00397034]
[1770428046685,0.58200988,70201.0,70171.0,0.00397034]
[1770428046994,0.014258,70188.0,70163.0,0.00397034]
[1770428047184,0.014255,70202.0,70172.0,0.014261]
[1770428048202,0.014255,70202.0,70174.0,0.014261]
[1770428048685,0.58333333,70204.0,70150.0,0.21038376]
[1770428048892,0.58333333,70223.0,70184.0,0.014259]
[1770428049091,0.014254,70211.0,70184.0,0.014259]
[1770428049293,0.001,70201.0,70187.0,0.01218631]
[1770428049494,0.014253,70216.0,70189.0,0.01218631]
[1770428050592,0.014252,70220.0,70196.0,0.01218631]
[1770428050792,0.58433333,70223.0,70196.0,0.01218631]
[1770428050993,0.014253,70216.0,70196.0,0.01218631]
[1770428051196,0.58433333,70223.0,70196.0,0.01218631]
[1770428051492,0.014251,70222.0,70196.0,0.014256]
[1770428051696,0.58333333,70223.0,70193.0,0.014257]
[1770428051900,0.014252,70218.0,70190.0,0.014258]
[1770428052695,0.014251,70221.0,70176.0,0.01426]
[1770428052896,0.014251,70221.0,70177.0,0.21406637]
[1770428053106,0.58333333,70223.0,70198.0,0.014256]
[1770428053497,0.59758433,70223.0,70198.0,0.014256]
[1770428054400,0.014252,70219.0,70193.0,0.014257]
[1770428057208,0.59758533,70219.0,70193.0,0.014257]
[1770428057712,0.014252,70217.0,70193.0,0.014257]
[1770428058808,0.59758533,70217.0,70193.0,0.014257]
[1770428059007,0.58333333,70210.0,70183.0,0.014259]
[1770428059310,0.014255,70202.0,70178.0,0.01426]
[1770428059512,0.014256,70200.0,70179.0,0.21409681]
[1770428059704,0.014256,70200.0,70180.0,0.21409681]
[1770428059909,0.014256,70200.0,70176.0,0.01426]
[1770428060108,0.014255,70203.0,70180.0,0.01426]
[1770428060306,0.014255,70203.0,70181.0,0.21410635]
[1770428060602,0.59758733,70206.0,70182.0,0.22836535]
[1770428060809,0.59758733,70206.0,70182.0,0.014259]
[1770428061601,0.59758733,70206.0,70184.0,0.014259]
[1770428061914,0.014252,70218.0,70194.0,0.014257]
[1770428062100,0.014252,70216.0,70194.0,0.014257]
[1770428063209,0.58333333,70238.0,70195.0,0.21406937]
[1770428063407,0.58333333,70232.0,70198.0,0.014256]
[1770428063716,0.014251,70222.0,70200.0,0.21038376]
[1770428064108,0.59758433,70225.0,70200.0,0.22463976]
[1770428064312,0.014251,70223.0,70201.0,0.42443146]
[1770428064513,0.014251,70223.0,70199.0,0.22463976]
[1770428064915,0.58333333,70225.0,70199.0,0.21038376]
[1770428065222,0.58333333,70233.0,70203.0,0.014255]
[1770428065414,0.58333333,70229.0,70200.0,0.21038376]
[1770428065608,0.58333333,70229.0,70199.0,0.21038376]
[1770428066410,0.59758433,70224.0,70199.0,0.21038376]
[1770428066711,0.58333333,70224.0,70201.0,0.014255]
[1770428068630,0.58333333,70224.0,70203.0,0.014255]
[1770428068913,0.58333333,70224.0,70200.0,0.21038376]
[1770428069116,0.58333333,70224.0,70200.0,0.22463976]
[1770428069511,0.58333333,70224.0,70202.0,0.014255]
[1770428069822,0.2009,70240.0,70200.0,0.21038376]
[1770428070023,0.0002,70251.0,70239.0,0.014248]
[1770428070316,0.58333333,70267.0,70240.0,0.21393019]
[1770428070507,0.58333333,70261.0,70236.0,0.014248]
[1770428070711,0.58333333,70259.0,70237.0,0.21393284]
[1770428070912,0.58333333,70259.0,70233.0,0.014249]
[1770428071120,0.58333333,70259.0,70235.0,0.014248]
[1770428071321,0.0002,70262.0,70239.0,0.014248]
[1770428071618,0.57735859,70262.0,70239.0,0.014248]
[1770428072419,0.57715859,70262.0,70239.0,0.014248]
[1770428072816,0.57715859,70262.0,70236.0,0.014248]
[1770428073714,0.58333333,70256.0,70229.0,0.01425]
[1770428074420,0.58333333,70256.0,70231.0,0.014249]
[1770428074615,0.0002,70266.0,70244.0,0.014247]
[1770428074815,0.58333333,70271.0,70249.0,0.014246]
[1770428075214,0.58333333,70271.0,70246.0,0.014246]
[1770428076420,0.58333333,70271.0,70248.0,0.014246]
[1770428076818,0.58333333,70271.0,70245.0,0.014246]
[1770428078314,0.58333333,70271.0,70216.0,0.16846378]
[1770428078521,0.58333333,70271.0,70248.0,0.014246]
[1770428078919,0.58333333,70271.0,70254.0,0.014245]
[1770428079624,0.58333333,70271.0,70251.0,0.014245]
[1770428079825,0.58333333,70271.0,70248.0,0.014246]
[1770428080233,0.58333333,70271.0,70249.0,0.014246]
[1770428080435,0.58333333,70271.0,70231.0,0.014249]
[1770428080632,0.58333333,70271.0,70248.0,0.014246]
[1770428080830,0.58333333,70271.0,70221.0,0.16846378]
[1770428081133,0.58333333,70271.0,70254.0,0.014245]
[1770428081629,0.0002,70275.0,70254.0,0.014245]
[1770428081832,0.58314156,70286.0,70240.0,0.071239]
[1770428082034,0.58333333,70281.0,70256.0,0.014244]
[1770428082532,0.58333333,70277.0,70256.0,0.014244]
[1770428082733,0.58333333,70277.0,70258.0,0.014244]
[1770428083529,0.58333333,70277.0,70241.0,0.014247]
[1770428083734,0.58333333,70289.0,70253.0,0.014245]
[1770428083929,0.58333333,70289.0,70265.0,0.01405023]
[1770428084538,0.58333333,70289.0,70268.0,0.014242]
[1770428084742,0.0002,70286.0,70268.0,0.014242]
[1770428085231,0.0002,70286.0,70265.0,0.014242]
[1770428085540,0.58333333,70283.0,70261.0,0.014243]
[1770428085738,0.0002,70281.0,70263.0,0.014243]
[1770428085934,0.58333333,70279.0,70247.0,0.16761019]
[1770428086138,0.58333333,70279.0,70259.0,0.014244]
[1770428086436,0.0002,70281.0,70261.0,0.014243]
[1770428086934,0.58333333,70288.0,70261.0,0.014243]
[1770428087326,0.014239,70284.0,70261.0,0.014243]
[1770428087527,0.58333333,70286.0,70261.0,0.014243]
[1770428087931,0.0002,70284.0,70263.0,0.014243]
[1770428088127,0.014439,70284.0,70260.0,0.014243]
[1770428088733,0.58353333,70284.0,70262.0,0.014243]
[1770428089239,0.58353333,70285.0,70252.0,0.16761665]
[1770428089537,0.58353333,70285.0,70260.0,0.014243]
[1770428089538,0.58333333,70283.0,70260.0,0.014243]
[1770428089738,0.59757233,70282.0,70260.0,0.014243]
[1770428089940,0.58333333,70282.0,70262.0,0.014243]
[1770428090132,0.58333333,70282.0,70264.0,0.014243]
[1770428092040,0.0002,70283.0,70266.0,0.014242]
[1770428092343,0.58333333,70290.0,70269.0,0.014242]
[1770428092539,0.0002,70288.0,70269.0,0.014242]
[1770428092840,0.58353333,70288.0,70269.0,0.014242]
[1770428093336,0.58353333,70288.0,70266.0,0.014242]
[1770428093840,0.58353333,70286.0,70266.0,0.014242]
[1770428094433,0.58353333,70286.0,70263.0,0.014243]
[1770428094640,0.58353333,70286.0,70265.0,0.014242]
[1770428094936,0.58353333,70285.0,70265.0,0.014242]
[1770428095338,0.58333333,70323.0,70274.0,0.014241]
[1770428095539,0.58333333,70315.0,70280.0,0.014239]
[1770428095743,0.59742813,70324.0,70284.0,0.014239]
[1770428096038,0.59723636,70324.0,70287.0,0.16761665]
[1770428096243,0.59723636,70324.0,70307.0,0.014234]
[1770428096440,0.59723636,70324.0,70299.0,0.014236]
[1770428097344,0.61146736,70324.0,70299.0,0.014236]
[1770428097531,0.58333333,70311.0,70286.0,0.014238]
[1770428097733,0.58333333,70309.0,70284.0,0.014238]
[1770428098133,0.53819558,70304.0,70279.0,0.01424]
[1770428098333,0.53819558,70304.0,70282.0,0.014239]
[1770428098540,0.53819558,70304.0,70272.0,0.43099746]
[1770428098738,0.53819558,70304.0,70274.0,0.43099746]
[1770428098933,0.53819558,70304.0,70280.0,0.014239]
[1770428099139,0.0002,70301.0,70280.0,0.014239]
[1770428099845,0.0002,70301.0,70279.0,0.014239]
[1770428100045,0.53839558,70301.0,70274.0,0.014241]
[1770428100242,0.0002,70296.0,70279.0,0.01424]
[1770428100443,0.0002,70296.0,70268.0,0.41820014]
[1770428100644,0.0002,70296.0,70271.0,0.41820014]
[1770428100944,0.53819558,70301.0,70274.0,0.014241]
[1770428101245,0.53819558,70301.0,70283.0,0.014239]
[1770428101440,0.53819558,70301.0,70273.0,0.41820014]
[1770428101647,0.53819558,70301.0,70275.0,0.42429062]
[1770428101838,0.53819558,70301.0,70276.0,0.6380991]
[1770428102039,0.53819558,70301.0,70280.0,0.014239]
[1770428102936,0.53819558,70301.0,70276.0,0.43853062]
[1770428103137,0.53819558,70301.0,70278.0,0.01424]
[1770428105042,0.53819558,70301.0,70270.0,0.014241]
[1770428105242,0.53819558,70291.0,70264.0,0.014243]
[1770428105440,0.53819558,70291.0,70265.0,0.2138279]
[1770428105635,0.53819558,70291.0,70266.0,0.2138279]
[1770428105837,0.53819558,70291.0,70267.0,0.2138279]
[1770428106041,0.53819558,70291.0,70268.0,0.2138279]
[1770428106343,0.55817162,70285.0,70260.0,0.41379197]
[1770428106643,0.55817162,70285.0,70264.0,0.014242]
[1770428106846,0.55817162,70285.0,70265.0,0.21385177]
[1770428107041,0.55817162,70285.0,70266.0,0.21385177]
[1770428107242,0.55817162,70285.0,70266.0,0.11253833]
[1770428107748,0.57241062,70285.0,70266.0,0.11253833]
[1770428107943,0.57241062,70285.0,70259.0,0.22374205]
[1770428107944,0.55817162,70285.0,70265.0,0.11253833]
[1770428108248,0.57186214,70294.0,70270.0,0.014241]
[1770428108450,0.57186214,70294.0,70273.0,0.014241]
[1770428109349,0.57186214,70294.0,70275.0,0.01424]
[1770428109647,0.014236,70299.0,70275.0,0.56325485]
[1770428109849,0.57206214,70302.0,70276.0,0.8896859]
[1770428110041,0.57206214,70302.0,70277.0,0.8896844]
[1770428110238,0.57186214,70302.0,70278.0,0.32642955]
[1770428110445,0.57186214,70302.0,70280.0,0.014239]
[1770428110952,0.57186214,70302.0,70279.0,0.11261086]
[1770428110953,0.57186214,70302.0,70278.0,0.67586571]
[1770428111144,0.58609714,70302.0,70278.0,0.67586571]
[1770428111448,0.58609714,70302.0,70278.0,0.11261086]
[1770428112058,0.57186214,70302.0,70278.0,0.11261086]
[1770428112243,0.57186214,70302.0,70279.0,0.32642369]
[1770428112550,0.57186214,70302.0,70279.0,0.11261086]
[1770428112944,0.57186214,70302.0,70278.0,0.11261086]
[1770428113744,0.57186214,70302.0,70277.0,0.01424]
[1770428114646,0.58576517,70324.0,70279.0,0.56325485]
[1770428114851,0.58576517,70324.0,70303.0,0.014235]
[1770428115054,0.58576517,70324.0,70299.0,0.57749085]
[1770428115256,0.58576517,70324.0,70302.0,0.014235]
[1770428115451,0.58576517,70324.0,70299.0,0.56325485]
[1770428115753,0.58576517,70324.0,70297.0,0.014236]
[1770428116143,0.58576517,70324.0,70290.0,0.014237]
[1770428116350,0.58576517,70324.0,70289.0,0.56325485]
[1770428116752,0.58576517,70324.0,70301.0,0.014235]
[1770428116950,0.58576517,70324.0,70297.0,0.014236]
[1770428117949,0.57186214,70320.0,70300.0,0.014235]
[1770428118350,0.57186214,70320.0,70295.0,0.071184]
[1770428118552,0.01390303,70324.0,70317.0,0.014232]
[1770428118748,0.01390303,70324.0,70294.0,0.014237]
[1770428118749,1.7e-07,70329.0,70318.0,0.014232]
[1770428118950,1.7e-07,70329.0,70316.0,0.014232]
[1770428119358,0.57186214,70347.0,70319.0,0.014231]
[1770428119556,0.57186214,70347.0,70323.0,0.014231]
[1770428120056,0.57186214,70347.0,70319.0,0.57748585]
[1770428121252,0.57186214,70347.0,70322.0,0.014231]
[1770428122155,0.57186214,70347.0,70319.0,0.56325485]
[1770428122356,0.57186214,70347.0,70323.0,0.56325485]
[1770428122656,0.57186214,70356.0,70323.0,0.56325485]
[1770428122864,0.57186214,70354.0,70328.0,0.01423]
[1770428123062,0.57186214,70354.0,70323.0,0.56325485]
[1770428123063,0.57186214,70354.0,70331.0,0.014229]
[1770428123364,0.57186214,70354.0,70328.0,0.01423]
[1770428123860,0.57186214,70352.0,70324.0,0.01423]
[1770428124068,0.57186214,70341.0,70314.0,0.11261086]
[1770428124261,0.57186214,70347.0,70320.0,0.014231]
[1770428124863,0.57186214,70342.0,70313.0,0.42070485]
[1770428125062,0.57186214,70342.0,70310.0,0.11261086]
[1770428125359,0.014228,70336.0,70309.0,0.11261086]
[1770428125558,0.57186214,70335.0,70308.0,0.014234]
[1770428125764,0.57186214,70333.0,70308.0,0.014234]
[1770428125964,0.57186214,70329.0,70307.0,0.11261086]
[1770428126164,0.57186214,70329.0,70305.0,0.56325485]
[1770428126359,0.57186214,70319.0,70302.0,0.11261086]
[1770428126659,0.57186214,70319.0,70296.0,0.014236]
[1770428128760,0.57186214,70319.0,70301.0,0.014235]
[1770428129164,0.57186214,70335.0,70301.0,0.56325485]
[1770428130168,0.57186214,70334.0,70307.0,0.56325485]
[1770428130368,0.58609114,70334.0,70312.0,0.014233]
[1770428130965,0.57186214,70331.0,70307.0,0.56325485]
[1770428131366,0.014228,70337.0,70312.0,0.57748785]
[1770428131566,0.014228,70337.0,70306.0,0.11261086]
[1770428131567,0.57186214,70337.0,70306.0,0.11261086]
[1770428132163,0.57186214,70337.0,70307.0,0.32631788]
[1770428132368,0.57186214,70325.0,70307.0,0.11261086]
[1770428132568,0.57186214,70325.0,70304.0,0.12684486]
[1770428132766,0.57186214,70325.0,70305.0,0.014234]
[1770428132968,0.57186214,70325.0,70302.0,0.12684586]
[1770428133164,0.57186214,70325.0,70303.0,0.32633327]
[1770428133369,0.57186214,70325.0,70310.0,0.01423286]
[1770428134171,0.57186214,70325.0,70304.0,0.11261086]
[1770428134669,0.57186214,70325.0,70303.0,0.12684586]
[1770428135066,0.57186214,70325.0,70304.0,0.32633899]
[1770428135266,0.57186214,70325.0,70304.0,0.11261086]
[1770428135471,0.57186214,70325.0,70305.0,0.014234]
[1770428135663,0.57186214,70325.0,70307.0,0.014234]
[1770428136561,0.56050599,70314.0,70299.0,0.16837865]
[1770428136763,0.42991642,70312.0,70292.0,0.27932455]
[1770428136975,0.42991642,70312.0,70290.0,0.014237]
[1770428138170,0.014233,70310.0,70286.0,0.014238]
[1770428138370,0.00597661,70309.0,70288.0,0.014238]
[1770428138971,0.00597661,70313.0,70287.0,0.58134112]
[1770428139364,0.00592661,70313.0,70287.0,0.58134112]
[1770428140374,0.00592661,70313.0,70294.0,0.014236]
[1770428140576,0.00592661,70313.0,70293.0,0.014237]
[1770428140868,0.014232,70315.0,70295.0,0.014236]
[1770428141074,0.014232,70318.0,70295.0,0.58243486]
[1770428141571,0.04213239,70315.0,70287.0,0.5692892]
[1770428141876,0.04213239,70312.0,70289.0,0.014238]
[1770428142177,0.04213239,70312.0,70287.0,0.5692892]
[1770428142479,0.04213239,70312.0,70292.0,0.014237]
[1770428142678,0.014232,70316.0,70295.0,0.014236]
[1770428142869,0.071137,70342.0,70292.0,0.5692892]
[1770428142870,0.05636439,70319.0,70297.0,0.014236]
[1770428143070,0.05636439,70319.0,70297.0,0.5835252]
[1770428143570,0.014232,70319.0,70297.0,0.5835252]
[1770428144572,0.014232,70319.0,70297.0,0.5692892]
[1770428146370,0.014231,70321.0,70297.0,0.5835252]
[1770428146570,0.014232,70319.0,70297.0,0.5692892]
[1770428149779,0.014232,70317.0,70297.0,0.5692892]
[1770428149981,0.014231,70320.0,70307.0,0.01423286]
[1770428150181,0.014232,70318.0,70307.0,0.01423286]
[1770428150476,0.014232,70318.0,70295.0,0.014236]
[1770428151274,0.014232,70316.0,70292.0,0.014237]
[1770428151480,0.014232,70316.0,70293.0,0.21376199]
[1770428151776,0.014224,70356.0,70308.0,0.58333333]
[1770428151978,0.014228,70335.0,70311.0,0.59756633]
[1770428152180,0.014228,70338.0,70314.0,0.59756533]
[1770428152580,0.014226,70347.0,70314.0,0.58333333]
[1770428152787,0.014232,70317.0,70297.0,0.58833333]
[1770428153085,0.014232,70318.0,70297.0,0.58333333]
[1770428154987,0.014232,70319.0,70297.0,0.58333333]
[1770428155787,0.014232,70318.0,70297.0,0.58333333]
[1770428156189,0.01423,70329.0,70306.0,0.58333333]
[1770428156376,0.014231,70323.0,70306.0,0.58333333]
[1770428156579,0.01423,70326.0,70306.0,0.58333333]
[1770428157083,0.014232,70316.0,70283.0,0.005]
[1770428157294,0.014232,70316.0,70280.0,0.58333333]
[1770428157491,0.57516,70315.0,70280.0,0.58333333]
[1770428157989,0.014237,70293.0,70280.0,0.58333333]
[1770428158292,0.59756,70302.0,70280.0,0.58333333]
[1770428158490,0.014234,70305.0,70280.0,0.58333333]
[1770428158791,0.014235,70304.0,70282.0,0.58333333]
[1770428160093,0.50588,70312.0,70282.0,0.58333333]
[1770428160293,0.014233,70311.0,70282.0,0.58333333]
[1770428160691,0.014235,70302.0,70282.0,0.58333333]
[1770428160890,0.014236,70299.0,70282.0,0.58333333]
[1770428161092,0.014235,70301.0,70282.0,0.58333333]
[1770428161293,0.014234,70307.0,70282.0,0.58333333]
[1770428161698,0.014235,70305.0,70282.0,0.58333333]
[1770428161897,0.014232,70317.0,70296.0,0.58333333]
[1770428162191,0.014233,70313.0,70296.0,0.58333333]
[1770428162798,0.014229,70331.0,70296.0,0.58333333]
[1770428162799,0.014233,70314.0,70296.0,0.58333333]
[1770428164298,0.014233,70312.0,70287.0,0.58333333]
[1770428164595,0.014229,70331.0,70291.0,0.58333333]
[1770428164596,0.014232,70315.0,70291.0,0.58333333]
[1770428164901,0.014233,70313.0,70291.0,0.58333333]
[1770428166396,0.014233,70311.0,70291.0,0.58333333]
[1770428166791,0.014233,70314.0,70291.0,0.58333333]
[1770428172205,0.014233,70312.0,70291.0,0.58333333]
[1770428172406,0.014233,70310.0,70291.0,0.58333333]
[1770428173106,0.014234,70308.0,70291.0,0.58333333]
[1770428173400,0.014234,70308.0,70291.0,0.30577827]
[1770428173596,0.24492007,70305.0,70281.0,0.57808713]
[1770428174200,0.014234,70306.0,70283.0,0.57808713]
[1770428174505,0.014234,70309.0,70285.0,0.57808713]
[1770428174696,0.014235,70304.0,70285.0,0.57808713]
[1770428175306,0.014234,70308.0,70285.0,0.59232513]
[1770428175605,0.014233,70311.0,70285.0,0.59232513]
[1770428176004,0.24691852,70310.0,70285.0,0.57808713]
[1770428176404,0.014235,70305.0,70285.0,0.57808713]
[1770428177703,0.014235,70303.0,70285.0,0.57808713]
[1770428178507,0.014235,70301.0,70285.0,0.57808713]
[1770428179295,0.014236,70297.0,70278.0,0.57808713]
[1770428179507,0.014237,70295.0,70278.0,0.57808713]
[1770428179801,0.014236,70296.0,70278.0,0.57808713]
[1770428182506,0.24882517,70305.0,70280.0,0.57808713]
[1770428183005,0.014235,70301.0,70280.0,0.57808713]
[1770428183597,0.24803608,70308.0,70280.0,0.57808713]
[1770428183796,0.014235,70300.0,70280.0,0.57808713]
[1770428184203,0.24803608,70308.0,70280.0,0.57808713]
[1770428184204,0.014235,70301.0,70280.0,0.57808713]
[1770428184706,0.24803608,70308.0,70280.0,0.57808713]
[1770428184707,0.24803608,70308.0,70280.0,0.59232613]
[1770428184904,0.014232,70318.0,70286.0,0.57808713]
[1770428184905,0.24803608,70317.0,70286.0,0.57808713]
[1770428185102,0.014234,70307.0,70286.0,0.57808713]
[1770428185303,0.014234,70310.0,70288.0,0.57808713]
[1770428185709,0.014231,70322.0,70290.0,0.57808713]
[1770428185710,0.014233,70314.0,70290.0,0.57808713]
[1770428186010,0.014231,70322.0,70290.0,0.57808713]
[1770428186210,0.014233,70311.0,70290.0,0.57808713]
[1770428186414,0.25262939,70310.0,70283.0,0.57808713]
[1770428186597,0.014233,70311.0,70283.0,0.56229713]
[1770428186598,0.014236,70298.0,70283.0,0.56229713]
[1770428186803,0.25262939,70302.0,70283.0,0.56229713]
[1770428187004,0.014236,70299.0,70283.0,0.56229713]
[1770428187404,0.014236,70299.0,70283.0,0.43534713]
[1770428188507,0.39616408,70309.0,70283.0,0.43534713]
[1770428188709,0.014232,70316.0,70283.0,0.43534713]
[1770428188910,0.014234,70306.0,70283.0,0.43534713]
[1770428189110,0.014234,70306.0,70275.0,0.16998726]
[1770428189111,0.014234,70310.0,70285.0,0.57808713]
[1770428189510,0.39616408,70317.0,70285.0,0.57808713]
[1770428189511,0.014234,70308.0,70285.0,0.57808713]
[1770428189912,0.39616408,70317.0,70287.0,0.57808713]
[1770428190205,0.014234,70308.0,70287.0,0.57808713]
[1770428191112,0.014233,70311.0,70287.0,0.59232513]
[1770428191312,0.014233,70311.0,70290.0,0.57808713]
[1770428192313,0.014232,70317.0,70294.0,0.57808713]
[1770428193513,0.014231,70320.0,70294.0,0.57808713]
[1770428193708,0.014232,70318.0,70294.0,0.57808713]
[1770428193913,0.014233,70314.0,70294.0,0.57808713]
[1770428194315,0.014232,70318.0,70296.0,0.57808713]
[1770428194713,0.014231,70322.0,70300.0,0.57808713]
[1770428195715,0.014231,70320.0,70300.0,0.57808713]
[1770428196014,0.31588244,70324.0,70300.0,0.57808713]
[1770428196614,0.014232,70318.0,70300.0,0.57808713]
[1770428198014,0.014232,70316.0,70300.0,0.57808713]
[1770428199115,0.014229,70332.0,70291.0,0.56220029]
[1770428199116,0.014233,70312.0,70291.0,0.56220029]
[1770428199619,0.014232,70315.0,70291.0,0.57643729]
[1770428200018,0.014232,70318.0,70294.0,0.56220029]
[1770428200410,0.014231,70321.0,70296.0,0.56220029]
[1770428201016,0.014231,70321.0,70298.0,0.56220029]
[1770428201315,0.31913674,70330.0,70300.0,0.56220029]
[1770428201624,0.42645176,70341.0,70309.0,0.56220029]
[1770428201625,0.32992683,70341.0,70309.0,0.56220029]
[1770428202317,0.014229,70334.0,70309.0,0.56220029]
[1770428202521,0.014229,70332.0,70309.0,0.56220029]
[1770428202823,0.014228,70338.0,70312.0,0.57643329]
[1770428203915,0.014228,70336.0,70312.0,0.57643329]
[1770428204918,0.014228,70336.0,70312.0,0.56220029]
[1770428205918,0.014229,70334.0,70312.0,0.56220029]
[1770428206219,0.32285916,70355.0,70321.0,0.56220029]
[1770428206412,0.014226,70348.0,70321.0,0.56220029]
[1770428206617,0.014226,70348.0,70323.0,0.56220029]
[1770428207025,0.33708516,70366.0,70330.0,0.56220029]
[1770428207321,0.014223,70359.0,70333.0,0.56220029]